[Event "Lueneburg Open-B 2019"]
[Site "Lueneburg"]
[Date "2019.08.08"]
[Round "5.2"]
[White "Thomas, Jeremy"]
[Black "Ahrens, Gunnar"]
[Result "1-0"]
[ECO "B34"]
[WhiteElo "1717"]
[BlackElo "1764"]
[Annotator "NA RC"]
[PlyCount "53"]
[EventDate "2019.08.03"]
[EventType "swiss"]
[EventCountry "GER"]
[SourceTitle "playchess.com"]
[Source "ChessBase"]
[SourceQuality "1"]
[TimeControl "40/5400+30:1800+30"]

1. e4 {[%emt 0:00:00]} c5 {[%emt 0:00:00]} 2. Nf3 {[%emt 0:00:00]} Nc6 {[%emt 0:00:00]} 3. d4 {[%emt 0:00:00]} cxd4 {[%emt 0:00:00]} 4. Nxd4 {[%emt 0:00:02]} g6 {[%emt 0:01:01]} 5. Nc3 {[%emt 0:01:43]} Bg7 {[%emt 0:00:11]} 6. Be3 {[%emt 0:00:27]} a6 {[%emt 0:00:28]} 7. Qd2 {[%emt 0:01:31]} Nf6 {[%emt 0:01:10]} 8. f3 {[%emt 0:03:54]} O-O {[%emt 0:01:00]} 9. O-O-O {[%emt 0:03:01]} Qc7 {[%emt 0:01:47]} 10. g4 {[%emt 0:07:21]} d6 {[%emt 0:02:14]} 11. g5 {[%emt 0:07:55]} Nd7 {[%emt 0:00:36]} 12. Nd5 {[%emt 0:01:42]} Qd8 {[%emt 0:00:10]} 13. h4 {[%emt 0:05:04]} e6 {[%emt 0:03:56]} 14. Nc3 {[%emt 0:02:41]} Nde5 {[%emt 0:03:47]} 15. Be2 {[%emt 0:01:49]} d5 {[%emt 0:02:19]} 16. f4 {[%emt 0:06:18]} Nc4 {[%emt 0:00:55]} 17. Bxc4 {[%emt 0:00:12]} dxc4 {[%emt 0:00:03]} 18. Nxc6 {[%emt 0:00:23]} Qxd2+ {[%emt 0:00:17]} 19. Rxd2 {[%emt 0:00:09]} bxc6 {[%emt 0:00:10]} 20. e5 {[%emt 0:00:22]} Rb8 {[%emt 0:00:19]} 21. Rd4 {[%emt 0:00:32]} Bb7 {[%emt 0:00:59]} 22. Rhd1 {[%emt 0:03:44]} Ba8 {[%emt 0:00:36]} 23. Rxc4 {[%emt 0:01:12]} Rfd8 {[%emt 0:00:10]} 24. Rcd4 {[%emt 0:01:30]} Rxd4 {[%emt 0:00:02]} 25. Rxd4 {[%emt 0:00:21]} Bf8 {[%emt 0:00:05]} 26. Rd7 {[%emt 0:03:31]} Rb7 {[%emt 0:00:13]} 27. Rd8 {[%emt 0:00:23]} 1-0

[Event "Lueneburg Open-B 2019"]
[Site "Lueneburg"]
[Date "2019.08.08"]
[Round "5.3"]
[White "Rewerts, Ingo"]
[Black "Kasipour Azbari, Seyed Arvin"]
[Result "1-0"]
[ECO "D03"]
[WhiteElo "1792"]
[BlackElo "1765"]
[Annotator "NA RC"]
[PlyCount "65"]
[EventDate "2019.08.03"]
[EventType "swiss"]
[EventCountry "GER"]
[SourceTitle "playchess.com"]
[Source "ChessBase"]
[SourceQuality "1"]
[TimeControl "40/5400+30:1800+30"]

1. d4 {[%emt 0:00:00]} Nf6 {[%emt 0:00:09]} 2. Nf3 {[%emt 0:00:00]} g6 {[%emt 0:00:05]} 3. Bg5 {[%emt 0:00:20]} Bg7 {[%emt 0:00:24]} 4. c3 {[%emt 0:00:17]} d5 {[%emt 0:02:21]} 5. e3 {[%emt 0:00:47]} O-O {[%emt 0:02:56]} 6. Bd3 {[%emt 0:00:45]} Nbd7 {[%emt 0:08:14]} 7. Bxf6 {[%emt 0:02:16]} Bxf6 {[%emt 0:00:10]} 8. h4 {[%emt 0:00:11]} e5 {[%emt 0:04:57]} 9. dxe5 {[%emt 0:00:17]} Nxe5 {[%emt 0:00:45]} 10. Nxe5 {[%emt 0:00:20]} Bxe5 {[%emt 0:03:53]} 11. h5 {[%emt 0:00:16]} Qg5 {[%emt 0:03:45]} 12. g3 {[%emt 0:03:12]} Bxg3 {[%emt 0:10:33]} 13. fxg3 {[%emt 0:05:21]} Qxe3+ {[%emt 0:00:58]} 14. Be2 {[%emt 0:05:32]} Qxg3+ {[%emt 0:05:20]} 15. Kd2 {[%emt 0:01:06]} Qg5+ {[%emt 0:01:48]} 16. Kc2 {[%emt 0:00:51]} Bf5+ {[%emt 0:01:34]} 17. Kb3 {[%emt 0:00:23]} Qe3 {[%emt 0:13:23]} 18. hxg6 {[%emt 0:12:26]} fxg6 {[%emt 0:04:25]} 19. Nd2 {[%emt 0:17:11]} Qb6+ {[%emt 0:04:45]} 20. Ka3 {[%emt 0:00:37]} a5 {[%emt 0:02:14]} 21. b3 {[%emt 0:03:01]} a4 {[%emt 0:08:53]} 22. b4 {[%emt 0:00:34]} c5 {[%emt 0:01:04]} 23. Qg1 {[%emt 0:01:00]} cxb4+ {[%emt 0:04:33]} 24. cxb4 {[%emt 0:00:21]} Qe6 {[%emt 0:00:46]} 25. Re1 {[%emt 0:04:22]} Qf6 {[%emt 0:01:37]} 26. Rc1 {[%emt 0:07:09]} Rfc8 {[%emt 0:01:55]} 27. Qe3 {[%emt 0:08:46]} Bc2 {[%emt 0:03:58]} 28. Nc4 {[%emt 0:04:20]} dxc4 {[%emt 0:01:40]} 29. Rxc2 {[%emt 0:00:58]} b5 {[%emt 0:00:30]} 30. Bf3 {[%emt 0:03:08]} Re8 {[%emt 0:04:49]} 31. Bd5+ {[%emt 0:01:04]} Kh8 {[%emt 0:00:01]} 32. Rxh7+ {[%emt 0:05:58]} Kxh7 {[%emt 0:00:44]} 33. Rh2+ {[%emt 0:00:07]} 1-0

[Event "Lueneburg Open-B 2019"]
[Site "Lueneburg"]
[Date "2019.08.08"]
[Round "5.4"]
[White "Seeber, Helmut"]
[Black "Fomenkov, Alexander"]
[Result "0-1"]
[ECO "E17"]
[WhiteElo "1580"]
[BlackElo "1779"]
[Annotator "NA RC"]
[PlyCount "120"]
[EventDate "2019.08.03"]
[EventType "swiss"]
[EventCountry "GER"]
[SourceTitle "playchess.com"]
[Source "ChessBase"]
[SourceQuality "1"]
[TimeControl "40/5400+30:1800+30"]

1. Nf3 {[%emt 0:00:00]} Nf6 {[%emt 0:00:00]} 2. c4 {[%emt 0:00:00]} b6 {[%emt 0:02:36]} 3. g3 {[%emt 0:00:17]} Bb7 {[%emt 0:00:08]} 4. d4 {[%emt 0:01:06]} e6 {[%emt 0:01:59]} 5. Bg2 {[%emt 0:00:17]} Be7 {[%emt 0:00:11]} 6. O-O {[%emt 0:01:15]} O-O {[%emt 0:00:08]} 7. Bf4 {[%emt 0:02:59]} d6 {[%emt 0:01:43]} 8. Nc3 {[%emt 0:01:10]} Ne4 {[%emt 0:00:53]} 9. Qc2 {[%emt 0:02:55]} Nxc3 {[%emt 0:00:03]} 10. bxc3 {[%emt 0:01:05]} f5 {[%emt 0:03:28]} 11. Qb3 {[%emt 0:02:54]} Qc8 {[%emt 0:01:40]} 12. Rab1 {[%emt 0:12:26]} Nc6 {[%emt 0:04:34]} 13. Qc2 {[%emt 0:06:28]} Na5 {[%emt 0:05:07]} 14. Nd2 {[%emt 0:01:38]} g5 {[%emt 0:02:22]} 15. Be3 {[%emt 0:08:15]} f4 {[%emt 0:00:38]} 16. gxf4 {[%emt 0:01:14]} gxf4 {[%emt 0:00:03]} 17. Rb5 {[%emt 0:02:13]} c5 {[%emt 0:07:06]} 18. dxc5 {[%emt 0:05:28]} fxe3 {[%emt 0:01:46]} 19. cxd6 {[%emt 0:12:44]} Bxd6 {[%emt 0:02:09]} 20. Rh5 {[%emt 0:06:44]} Rf5 {[%emt 0:00:36]} 21. Rxf5 {[%emt 0:05:50]} exf5 {[%emt 0:00:04]} 22. fxe3 {[%emt 0:01:09]} Bxg2 {[%emt 0:00:35]} 23. Kxg2 {[%emt 0:00:15]} Qe6 {[%emt 0:08:23]} 24. Qxf5 {[%emt 0:01:52]} Qxf5 {[%emt 0:00:11]} 25. Rxf5 {[%emt 0:00:00]} Re8 {[%emt 0:07:37]} 26. e4 {[%emt 0:02:36]} Be5 {[%emt 0:03:17]} 27. Rg5+ {[%emt 0:03:09]} Kf7 {[%emt 0:04:04]} 28. Rf5+ {[%emt 0:02:54]} Ke6 {[%emt 0:01:02]} 29. Nf3 {[%emt 0:00:29]} Nxc4 {[%emt 0:08:17]} 30. Ng5+ {[%emt 0:00:31]} Ke7 {[%emt 0:02:46]} 31. Rf7+ {[%emt 0:00:42]} Kd6 {[%emt 0:02:32]} 32. Rxa7 {[%emt 0:01:08]} Rg8 {[%emt 0:02:04]} 33. Rxh7 {[%emt 0:01:22]} Rxg5+ {[%emt 0:00:06]} 34. Kf3 {[%emt 0:01:06]} Rg6 {[%emt 0:01:01]} 35. h4 {[%emt 0:00:49]} Rg3+ {[%emt 0:02:41]} 36. Kf2 {[%emt 0:00:03]} Rg8 {[%emt 0:04:23]} 37. Rh6+ {[%emt 0:01:59]} Kc5 {[%emt 0:02:21]} 38. Rh5 {[%emt 0:01:30]} Rh8 {[%emt 0:01:35]} 39. Rf5 {[%emt 0:00:26]} Rxh4 {[%emt 0:00:50]} 40. Kf3 {[%emt 0:00:20]} Rh3+ {[%emt 0:00:48]} 41. Kg4 {[%emt 0:30:07]} Rxc3 {[%emt 0:30:20]} 42. Rf8 {[%emt 0:00:39]} Ra3 {[%emt 0:05:28]} 43. Kf5 {[%emt 0:00:28]} Rxa2 {[%emt 0:03:14]} 44. e3 {[%emt 0:00:46]} Ra5 {[%emt 0:02:38]} 45. Rd8 {[%emt 0:00:30]} Kb4 {[%emt 0:01:09]} 46. Rd5 {[%emt 0:00:44]} Rxd5 {[%emt 0:00:39]} 47. exd5 {[%emt 0:00:01]} Kc5 {[%emt 0:00:10]} 48. Ke6 {[%emt 0:00:42]} b5 {[%emt 0:00:50]} 49. e4 {[%emt 0:00:24]} b4 {[%emt 0:00:14]} 50. Kf5 {[%emt 0:00:48]} b3 {[%emt 0:02:36]} 51. d6 {[%emt 0:00:02]} Bxd6 {[%emt 0:00:06]} 52. e5 {[%emt 0:00:03]} Bxe5 {[%emt 0:00:06]} 53. Ke4 {[%emt 0:00:04]} Kb4 {[%emt 0:01:22]} 54. Kd3 {[%emt 0:00:12]} Na3 {[%emt 0:00:07]} 55. Ke4 {[%emt 0:00:42]} Bh8 {[%emt 0:00:13]} 56. Kd3 {[%emt 0:00:08]} b2 {[%emt 0:00:12]} 57. Kd2 {[%emt 0:00:04]} b1=Q {[%emt 0:00:45]} 58. Ke2 {[%emt 0:00:00]} Qe4+ {[%emt 0:00:28]} 59. Kd2 {[%emt 0:00:08]} Bc3+ {[%emt 0:00:58]} 60. Kd1 {[%emt 0:00:26]} Qc2# {[%emt 0:00:28]} 0-1

[Event "Lueneburg Open-B 2019"]
[Site "Lueneburg"]
[Date "2019.08.08"]
[Round "5.5"]
[White "Schulze, Lukas"]
[Black "Suliga, Eckhard"]
[Result "0-1"]
[ECO "C42"]
[WhiteElo "1724"]
[BlackElo "1682"]
[Annotator "NA RC"]
[PlyCount "52"]
[EventDate "2019.08.03"]
[EventType "swiss"]
[EventCountry "GER"]
[SourceTitle "playchess.com"]
[Source "ChessBase"]
[SourceQuality "1"]
[TimeControl "40/5400+30:1800+30"]

1. e4 {[%emt 0:00:00]} e5 {[%emt 0:00:00]} 2. Nf3 {[%emt 0:00:00]} Nf6 {[%emt 0:00:00]} 3. Nxe5 {[%emt 0:00:00]} d6 {[%emt 0:00:00]} 4. Nf3 {[%emt 0:00:20]} Nxe4 {[%emt 0:00:00]} 5. d4 {[%emt 0:01:29]} d5 {[%emt 0:00:00]} 6. Bd3 {[%emt 0:02:58]} Be7 {[%emt 0:01:14]} 7. O-O {[%emt 0:01:13]} O-O {[%emt 0:00:18]} 8. Bf4 {[%emt 0:01:26]} Nc6 {[%emt 0:01:03]} 9. c3 {[%emt 0:02:58]} Bd6 {[%emt 0:02:29]} 10. Be3 {[%emt 0:03:22]} Re8 {[%emt 0:01:49]} 11. h3 {[%emt 0:00:51]} a6 {[%emt 0:00:43]} 12. Qc1 {[%emt 0:08:03]} Qf6 {[%emt 0:07:10]} 13. Nbd2 {[%emt 0:05:43]} Bf5 {[%emt 0:01:24]} 14. Qc2 {[%emt 0:01:23]} Nxd2 {[%emt 0:02:34]} 15. Nxd2 {[%emt 0:01:02]} Bxd3 {[%emt 0:00:16]} 16. Qxd3 {[%emt 1:07:12]} Ne7 {[%emt 1:19:00]} 17. Nf3 {[%emt 0:00:00]} h6 {[%emt 0:00:00]} 18. Qd2 {[%emt 0:00:00]} c6 {[%emt 0:00:00]} 19. Rae1 {[%emt 0:00:00]} Ng6 {[%emt 0:00:00]} 20. Nh2 {[%emt 0:00:00]} Nf4 {[%emt 0:00:00]} 21. Kh1 {[%emt 0:00:00]} Qf5 {[%emt 0:00:00]} 22. Nf3 {[%emt 0:00:00]} Nxh3 {[%emt 0:00:00]} 23. Bxh6 {[%emt 0:00:00]} Qh5 {[%emt 0:00:00]} 24. Bxg7 {[%emt 0:00:00]} Ng5+ {[%emt 0:00:00]} 25. Kg1 {[%emt 0:00:00]} Nxf3+ {[%emt 0:00:00]} 26. gxf3 {[%emt 0:00:00]} Qh2# {[%emt 0:00:00]} 0-1

[Event "Lueneburg Open-B 2019"]
[Site "Lueneburg"]
[Date "2019.08.08"]
[Round "5.6"]
[White "Buetow, Ingo"]
[Black "Neumann, Lutz"]
[Result "1/2-1/2"]
[ECO "A26"]
[WhiteElo "1747"]
[BlackElo "1784"]
[Annotator "NA RC"]
[PlyCount "31"]
[EventDate "2019.08.03"]
[EventType "swiss"]
[EventCountry "GER"]
[SourceTitle "playchess.com"]
[Source "ChessBase"]
[SourceQuality "1"]
[TimeControl "40/5400+30:1800+30"]

1. c4 {[%emt 0:00:00]} Nf6 {[%emt 0:00:00]} 2. g3 {[%emt 0:00:00]} g6 {[%emt 0:00:00]} 3. Bg2 {[%emt 0:00:01]} Bg7 {[%emt 0:00:00]} 4. Nc3 {[%emt 0:00:11]} O-O {[%emt 0:00:01]} 5. e4 {[%emt 0:00:09]} d6 {[%emt 0:00:12]} 6. Nge2 {[%emt 0:00:20]} e5 {[%emt 0:00:33]} 7. d3 {[%emt 0:00:13]} Nc6 {[%emt 0:00:26]} 8. O-O {[%emt 0:00:41]} Nd7 {[%emt 0:04:58]} 9. Be3 {[%emt 0:02:13]} f5 {[%emt 0:02:54]} 10. f3 {[%emt 0:00:39]} Nf6 {[%emt 0:02:01]} 11. Nd5 {[%emt 0:02:40]} Ne7 {[%emt 0:10:41]} 12. Nec3 {[%emt 0:07:35]} c6 {[%emt 0:07:47]} 13. Nxf6+ {[%emt 0:01:01]} Bxf6 {[%emt 0:00:43]} 14. Qd2 {[%emt 0:02:35]} Be6 {[%emt 0:02:11]} 15. b3 {[%emt 0:02:47]} Rf7 {[%emt 0:07:29]} 16. Qc1 {[%emt 1:16:55]} 1/2-1/2

[Event "Lueneburg Open-B 2019"]
[Site "Lueneburg"]
[Date "2019.08.08"]
[Round "5.7"]
[White "Thomas, Andreas"]
[Black "Ische, Helmut"]
[Result "0-1"]
[ECO "C50"]
[WhiteElo "1726"]
[BlackElo "1662"]
[Annotator "NA RC"]
[PlyCount "92"]
[EventDate "2019.08.03"]
[EventType "swiss"]
[EventCountry "GER"]
[SourceTitle "playchess.com"]
[Source "ChessBase"]
[SourceQuality "1"]
[TimeControl "40/5400+30:1800+30"]

1. e4 {[%emt 0:00:00]} d6 {[%emt 0:00:00]} 2. Nf3 {[%emt 0:01:04]} e5 {[%emt 0:00:43]} 3. d4 {[%emt 0:00:38]} exd4 {[%emt 0:02:39]} 4. Bc4 {[%emt 0:07:22]} Nf6 {[%emt 0:03:36]} 5. O-O {[%emt 0:03:58]} Be7 {[%emt 0:01:11]} 6. Re1 {[%emt 0:05:38]} O-O {[%emt 0:00:48]} 7. Nxd4 {[%emt 0:00:57]} Nbd7 {[%emt 0:05:48]} 8. Bb3 {[%emt 0:05:04]} Nc5 {[%emt 0:02:12]} 9. Nc3 {[%emt 0:00:30]} Nxb3 {[%emt 0:00:25]} 10. axb3 {[%emt 0:00:34]} a6 {[%emt 0:01:21]} 11. f4 {[%emt 0:03:15]} Re8 {[%emt 0:04:20]} 12. Qf3 {[%emt 0:04:20]} c5 {[%emt 0:08:29]} 13. Nde2 {[%emt 0:05:02]} Bd7 {[%emt 0:04:38]} 14. Ng3 {[%emt 0:12:41]} Bf8 {[%emt 0:04:24]} 15. Bd2 {[%emt 0:03:02]} Bc6 {[%emt 0:06:11]} 16. Rad1 {[%emt 0:07:45]} Qc7 {[%emt 0:04:27]} 17. Nd5 {[%emt 0:08:58]} Nxd5 {[%emt 0:00:22]} 18. exd5 {[%emt 0:00:05]} Rxe1+ {[%emt 0:00:23]} 19. Rxe1 {[%emt 0:00:15]} Bd7 {[%emt 0:00:11]} 20. f5 {[%emt 0:02:44]} b5 {[%emt 0:08:16]} 21. f6 {[%emt 0:10:00]} g6 {[%emt 0:04:41]} 22. Ne4 {[%emt 0:05:09]} Re8 {[%emt 0:07:57]} 23. Ng5 {[%emt 0:03:26]} Rxe1+ {[%emt 0:01:16]} 24. Bxe1 {[%emt 0:00:11]} Qd8 {[%emt 0:00:20]} 25. Bd2 {[%emt 0:02:45]} h6 {[%emt 0:03:33]} 26. Ne4 {[%emt 0:00:59]} Bf5 {[%emt 0:02:19]} 27. b4 {[%emt 0:01:43]} Bxe4 {[%emt 0:00:25]} 28. Qxe4 {[%emt 0:00:13]} Qxf6 {[%emt 0:00:28]} 29. bxc5 {[%emt 0:00:38]} dxc5 {[%emt 0:00:38]} 30. Bc3 {[%emt 0:00:20]} Qe7 {[%emt 0:00:34]} 31. Qf3 {[%emt 0:01:12]} b4 {[%emt 0:00:55]} 32. Bd2 {[%emt 0:00:23]} a5 {[%emt 0:00:32]} 33. b3 {[%emt 0:01:00]} Bg7 {[%emt 0:01:10]} 34. h3 {[%emt 0:00:53]} Kh7 {[%emt 0:01:49]} 35. Be3 {[%emt 0:01:21]} Be5 {[%emt 0:03:43]} 36. Qf2 {[%emt 0:00:49]} Bd6 {[%emt 0:00:34]} 37. Kh1 {[%emt 0:00:39]} Kg7 {[%emt 0:01:28]} 38. Qd2 {[%emt 0:00:46]} g5 {[%emt 0:00:26]} 39. h4 {[%emt 0:00:43]} f6 {[%emt 0:02:18]} 40. c4 {[%emt 0:02:15]} Qe5 {[%emt 0:00:22]} 41. Kg1 {[%emt 0:00:43]} Qh2+ {[%emt 0:01:35]} 42. Kf1 {[%emt 0:00:07]} Qxh4 {[%emt 0:00:17]} 43. Bf2 {[%emt 0:01:48]} Qh1+ {[%emt 0:02:17]} 44. Ke2 {[%emt 0:00:52]} Qxg2 {[%emt 0:00:19]} 45. Qe3 {[%emt 0:00:06]} Qg4+ {[%emt 0:00:20]} 46. Kf1 {[%emt 0:00:33]} Qd7 {[%emt 0:01:40]} 0-1

[Event "Lueneburg Open-B 2019"]
[Site "Lueneburg"]
[Date "2019.08.08"]
[Round "5.8"]
[White "Krause, Holger"]
[Black "Gerdau, Niklas"]
[Result "0-1"]
[ECO "B23"]
[WhiteElo "1639"]
[BlackElo "1704"]
[Annotator "NA RC"]
[PlyCount "36"]
[EventDate "2019.08.03"]
[EventType "swiss"]
[EventCountry "GER"]
[SourceTitle "playchess.com"]
[Source "ChessBase"]
[SourceQuality "1"]
[TimeControl "40/5400+30:1800+30"]

1. e4 {[%emt 0:00:00]} c5 {[%emt 0:00:00]} 2. Nc3 {[%emt 0:00:00]} e6 {[%emt 0:00:00]} 3. g3 {[%emt 0:00:00]} d5 {[%emt 0:00:00]} 4. exd5 {[%emt 0:00:56]} exd5 {[%emt 0:00:34]} 5. d4 {[%emt 0:02:39]} Nf6 {[%emt 0:02:42]} 6. Bg2 {[%emt 0:02:59]} cxd4 {[%emt 0:00:12]} 7. Qxd4 {[%emt 0:00:27]} Nc6 {[%emt 0:00:07]} 8. Qd3 {[%emt 0:03:12]} d4 {[%emt 0:02:11]} 9. Ne4 {[%emt 0:04:01]} Bf5 {[%emt 0:04:58]} 10. Nxf6+ {[%emt 0:06:28]} Qxf6 {[%emt 0:01:16]} 11. Qb3 {[%emt 0:06:01]} Nb4 {[%emt 0:02:43]} 12. Qa4+ {[%emt 0:03:55]} Bd7 {[%emt 0:00:33]} 13. Qb3 {[%emt 0:00:56]} Rc8 {[%emt 0:00:26]} 14. Be4 {[%emt 0:03:47]} Qe5 {[%emt 0:02:02]} 15. f3 {[%emt 0:02:24]} Nxc2+ {[%emt 0:00:29]} 16. Kd1 {[%emt 0:00:27]} Nxa1 {[%emt 0:00:52]} 17. Bf4 {[%emt 0:00:57]} Rc1+ {[%emt 0:02:28]} 18. Kxc1 {[%emt 0:00:30]} Qc5+ {[%emt 0:00:09]} 0-1

[Event "Lueneburg Open-B 2019"]
[Site "Lueneburg"]
[Date "2019.08.08"]
[Round "5.9"]
[White "Cordsen, Heinrich"]
[Black "Geissler, Karl-Heinz"]
[Result "1/2-1/2"]
[ECO "C10"]
[WhiteElo "1685"]
[BlackElo "1581"]
[Annotator "NA"]
[PlyCount "24"]
[EventDate "2019.08.03"]
[EventType "swiss"]
[EventCountry "GER"]
[SourceTitle "playchess.com"]
[Source "ChessBase"]
[SourceQuality "1"]
[TimeControl "40/5400+30:1800+30"]

1. e4 {[%emt 0:00:00]} e6 {[%emt 0:00:00]} 2. d4 {[%emt 0:00:00]} d5 {[%emt 0:00:00]} 3. Nc3 {[%emt 0:00:37]} dxe4 {[%emt 0:00:19]} 4. Nxe4 {[%emt 0:00:44]} Be7 {[%emt 0:00:14]} 5. Nf3 {[%emt 0:02:16]} Nd7 {[%emt 0:02:10]} 6. Bd3 {[%emt 0:09:38]} Ngf6 {[%emt 0:00:29]} 7. Ng3 {[%emt 0:01:59]} O-O {[%emt 0:03:21]} 8. O-O {[%emt 0:00:40]} b6 {[%emt 0:00:13]} 9. c4 {[%emt 0:08:00]} Bb7 {[%emt 0:01:01]} 10. Ng5 {[%emt 0:10:21]} g6 {[%emt 0:08:38]} 11. h4 {[%emt 0:11:24]} c5 {[%emt 0:00:47]} 12. h5 {[%emt 0:10:35]} Nxh5 {[%emt 0:04:57]} 1/2-1/2

[Event "Lueneburg Open-B 2019"]
[Site "Lueneburg"]
[Date "2019.08.08"]
[Round "5.10"]
[White "Domschke, Stephan"]
[Black "Mi, Gufeng"]
[Result "1-0"]
[ECO "B06"]
[WhiteElo "1671"]
[BlackElo "1564"]
[Annotator "NA RC"]
[PlyCount "71"]
[EventDate "2019.08.03"]
[EventType "swiss"]
[EventCountry "GER"]
[SourceTitle "playchess.com"]
[Source "ChessBase"]
[SourceQuality "1"]
[TimeControl "40/5400+30:1800+30"]

1. d4 {[%emt 0:00:00]} g6 {[%emt 0:03:39]} 2. e4 {[%emt 0:00:02]} Bg7 {[%emt 0:00:09]} 3. Be3 {[%emt 0:00:35]} d6 {[%emt 1:27:42]} 4. Nc3 {[%emt 0:01:33]} c6 {[%emt 0:00:00]} 5. Qd2 {[%emt 0:00:24]} h6 {[%emt 0:00:00]} 6. O-O-O {[%emt 0:01:12]} Nd7 {[%emt 0:00:00]} 7. f4 {[%emt 0:00:36]} e6 {[%emt 0:00:00]} 8. d5 {[%emt 0:04:34]} cxd5 {[%emt 0:00:00]} 9. exd5 {[%emt 0:00:35]} e5 {[%emt 0:00:00]} 10. Nf3 {[%emt 0:01:08]} a6 {[%emt 0:00:00]} 11. Ne4 {[%emt 0:03:53]} Qc7 {[%emt 0:00:00]} 12. fxe5 {[%emt 0:03:52]} Nxe5 {[%emt 0:00:00]} 13. Nxe5 {[%emt 0:00:55]} Bxe5 {[%emt 0:00:00]} 14. Bd4 {[%emt 0:02:01]} f6 {[%emt 0:00:00]} 15. Bxe5 {[%emt 0:06:20]} fxe5 {[%emt 0:00:00]} 16. Qb4 {[%emt 0:02:26]} Ke7 {[%emt 0:00:00]} 17. Bd3 {[%emt 0:04:07]} b6 {[%emt 0:00:00]} 18. Rhf1 {[%emt 0:01:15]} Bf5 {[%emt 0:00:00]} 19. Ng3 {[%emt 0:04:54]} Bxd3 {[%emt 0:00:00]} 20. Rxd3 {[%emt 0:00:02]} Nf6 {[%emt 0:00:00]} 21. Qh4 {[%emt 0:05:59]} Rhf8 {[%emt 0:00:00]} 22. Qxh6 {[%emt 0:02:48]} Rac8 {[%emt 0:00:00]} 23. Rc3 {[%emt 0:03:06]} Qd7 {[%emt 0:00:00]} 24. Rxc8 {[%emt 0:01:39]} Qxc8 {[%emt 0:00:00]} 25. Qxg6 {[%emt 0:00:55]} Qc4 {[%emt 0:00:00]} 26. Nf5+ {[%emt 0:09:53]} Kd8 {[%emt 0:00:00]} 27. Ne3 {[%emt 0:01:10]} Qxa2 {[%emt 0:00:00]} 28. Rxf6 {[%emt 0:01:54]} Qa1+ {[%emt 0:00:00]} 29. Kd2 {[%emt 0:00:16]} Qa5+ {[%emt 0:00:00]} 30. c3 {[%emt 0:00:59]} Rxf6 {[%emt 0:00:00]} 31. Qxf6+ {[%emt 0:00:10]} Kc7 {[%emt 0:00:00]} 32. Qe7+ {[%emt 0:00:42]} Kc8 {[%emt 0:00:00]} 33. Qe8+ {[%emt 0:01:30]} Kb7 {[%emt 0:00:00]} 34. Qc6+ {[%emt 0:00:09]} Ka7 {[%emt 0:02:14]} 35. Nc4 {[%emt 0:02:55]} Qa1 {[%emt 0:05:26]} 36. Qc7+ {[%emt 0:00:50]} 1-0

[Event "Lueneburg Open-B 2019"]
[Site "Lueneburg"]
[Date "2019.08.08"]
[Round "5.11"]
[White "Jessen, Bjarne"]
[Black "Schencke, Guenther"]
[Result "1-0"]
[ECO "C06"]
[WhiteElo "1569"]
[BlackElo "1668"]
[Annotator "NA RC"]
[PlyCount "45"]
[EventDate "2019.08.03"]
[EventType "swiss"]
[EventCountry "GER"]
[SourceTitle "playchess.com"]
[Source "ChessBase"]
[SourceQuality "1"]
[TimeControl "40/5400+30:1800+30"]

1. e4 {[%emt 0:00:00]} e6 {[%emt 0:00:00]} 2. d4 {[%emt 0:00:00]} d5 {[%emt 0:00:00]} 3. Nd2 {[%emt 0:00:00]} a6 {[%emt 0:00:00]} 4. Bd3 {[%emt 0:00:46]} Nf6 {[%emt 0:00:49]} 5. e5 {[%emt 0:01:00]} Nfd7 {[%emt 0:00:03]} 6. Ngf3 {[%emt 0:01:29]} c5 {[%emt 0:00:09]} 7. c3 {[%emt 0:00:08]} Nc6 {[%emt 0:01:23]} 8. O-O {[%emt 0:01:40]} b5 {[%emt 0:03:04]} 9. Re1 {[%emt 0:01:25]} Be7 {[%emt 0:08:36]} 10. Nf1 {[%emt 0:00:45]} Qb6 {[%emt 0:00:20]} 11. Be3 {[%emt 0:01:05]} cxd4 {[%emt 0:04:02]} 12. cxd4 {[%emt 0:00:17]} Bb7 {[%emt 0:07:13]} 13. Rc1 {[%emt 0:01:00]} Rc8 {[%emt 0:00:18]} 14. Ng3 {[%emt 0:02:32]} Qd8 {[%emt 0:01:21]} 15. Nh5 {[%emt 0:01:30]} O-O {[%emt 0:02:25]} 16. Nd2 {[%emt 0:03:19]} Re8 {[%emt 0:02:04]} 17. Qg4 {[%emt 1:05:56]} g6 {[%emt 0:04:07]} 18. Nf3 {[%emt 0:01:36]} Kh8 {[%emt 0:09:24]} 19. Bg5 {[%emt 0:01:18]} Rg8 {[%emt 0:10:40]} 20. Ng3 {[%emt 0:00:32]} h5 {[%emt 0:00:57]} 21. Nxh5 {[%emt 0:01:33]} Bxg5 {[%emt 0:03:09]} 22. Nxg5 {[%emt 0:00:32]} Qf8 {[%emt 0:02:06]} 23. Qh4 {[%emt 0:02:58]} 1-0